bitfinex/quotes_SOLUSD_20250316
["timestamp","ask_amount","ask_price","bid_price","bid_amount"]
[1742139093522,20.3303071,128.92,128.91,0.03]
[1742139093714,1.5032,128.92,128.91,0.03]
[1742139094129,20.3303071,128.92,128.91,0.03]
[1742139095338,18.8271071,128.93,128.91,0.03]
[1742139095523,18.8271071,128.94,128.91,0.03]
[1742139096331,18.8271071,128.93,128.91,0.03]
[1742139097233,18.8271071,128.95,128.91,0.03]
[1742139097413,25.7271071,128.95,128.91,0.03]
[1742139097612,18.8271071,128.94,128.91,0.03]
[1742139097823,18.8271071,128.92,128.91,0.03]
[1742139100533,45.5177791,128.92,128.91,0.03]
[1742139100733,47.0209791,128.92,128.91,0.03]
[1742139108229,20.0,128.89,128.83,7.7618]
[1742139108424,18.8271071,128.86,128.83,7.7618]
[1742139108932,18.8271071,128.87,128.83,7.7618]
[1742139109319,18.8271071,128.87,128.83,26.5889071]
[1742139109738,25.7271071,128.88,128.84,18.8271071]
[1742139110040,25.7271071,128.88,128.85,7.7609]
[1742139112019,25.7271071,128.88,128.84,7.7615]
[1742139112758,6.9,128.88,128.84,26.5886071]
[1742139113124,6.9,128.88,128.84,26.6186071]
[1742139113328,18.8271071,128.87,128.84,89.17287969]
[1742139113545,18.8271071,128.87,128.84,81.41137969]
[1742139114125,18.8271071,128.86,128.84,81.41137969]
[1742139114321,6.9,128.88,128.84,89.17277969]
[1742139114526,25.7271071,128.88,128.84,107.99988679]
[1742139114947,33.4863071,128.88,128.84,89.17277969]
[1742139115963,18.8271071,128.87,128.84,89.17277969]
[1742139116739,33.4863071,128.88,128.84,89.17277969]
[1742139116941,18.8271071,128.87,128.84,81.41137969]
[1742139117157,18.8271071,128.86,128.84,81.41137969]
[1742139118337,18.8271071,128.85,128.84,0.03]
[1742139118647,26.5880071,128.85,128.84,0.03]
[1742139122432,18.8271071,128.85,128.84,0.03]
[1742139122853,26.5880071,128.85,128.84,0.03]
[1742139123559,45.23765596,128.85,128.84,0.03]
[1742139123739,45.5219791,128.85,128.84,0.03]
[1742139124731,45.5219791,128.85,128.8,236.33]
[1742139124732,0.28432314,128.83,128.8,236.33]
[1742139124931,37.47675596,128.81,128.8,236.33]
[1742139126953,25.7271071,128.82,128.8,236.33]
[1742139127331,25.7271071,128.82,128.8,244.0938]
[1742139127532,18.8271071,128.81,128.8,236.33]
[1742139127732,25.7271071,128.82,128.8,244.0939]
[1742139127950,25.7271071,128.82,128.8,236.33]
[1742139128249,37.47675596,128.81,128.8,236.33]
[1742139128640,45.5243791,128.81,128.8,236.33]
[1742139132361,37.7610791,128.81,128.8,236.33]
[1742139132744,45.5243791,128.81,128.8,236.33]
[1742139132945,37.47675596,128.81,128.8,236.33]
[1742139133253,37.47675596,128.81,128.8,198.4737535]
[1742139134150,52.4243791,128.81,128.8,198.4737535]
[1742139137948,52.4243791,128.81,128.8,198.5037535]
[1742139140874,25.54964886,128.81,128.8,198.5037535]
[1742139141078,44.37675596,128.81,128.8,198.5037535]
[1742139142167,45.24005596,128.81,128.8,198.5037535]
[1742139142384,52.14005596,128.81,128.8,198.5037535]
[1742139142666,44.37675596,128.81,128.8,198.5037535]
[1742139142971,37.47675596,128.81,128.8,198.5037535]
[1742139143153,44.37675596,128.81,128.8,198.5037535]
[1742139143670,18.64964886,128.81,128.8,198.5037535]
[1742139143865,18.8271071,128.83,128.8,198.5037535]
[1742139144071,25.7271071,128.83,128.8,206.2676535]
[1742139144445,18.64964886,128.84,128.8,206.2676535]
[1742139144647,37.47675596,128.84,128.8,206.2676535]
[1742139144850,6.9,128.84,128.8,225.0947606]
[1742139145350,6.9,128.84,128.8,198.5037535]
[1742139145351,37.47675596,128.83,128.8,198.5037535]
[1742139146471,18.64964886,128.83,128.8,206.2676535]
[1742139149562,18.64964886,128.83,128.8,198.5037535]
[1742139149761,18.64964886,128.83,128.8,206.2675535]
[1742139150973,57.7610791,128.81,128.8,198.5037535]
[1742139151176,50.72332304,128.81,128.8,198.5037535]
[1742139151554,6.963,128.84,128.8,198.5037535]
[1742139151766,18.64964886,128.83,128.8,198.5037535]
[1742139152273,19.03667418,128.84,128.8,198.5037535]
[1742139152473,6.963,128.84,128.8,198.5037535]
[1742139152674,0.063,128.84,128.8,219.90382768]
[1742139152972,0.063,128.84,128.8,212.13992768]
[1742139153170,0.063,128.84,128.8,219.90382768]
[1742139153471,0.063,128.84,128.81,12.07367418]
[1742139153674,0.063,128.84,128.83,12.07367418]
[1742139153973,0.063,128.84,128.82,12.07367418]
[1742139155173,0.063,128.84,128.82,18.84079919]
[1742139155580,0.063,128.84,128.81,100.22217888]
[1742139156980,0.063,128.84,128.81,107.98527888]
[1742139159079,0.063,128.84,128.83,18.84079919]
[1742139159285,0.063,128.84,128.83,25.40349919]
[1742139160873,0.063,128.84,128.83,6.5627]
[1742139161080,0.063,128.84,128.83,25.40349919]
[1742139161784,0.063,128.84,128.83,33.16559919]
[1742139162268,0.063,128.84,128.83,6.5627]
[1742139165595,0.063,128.84,128.83,14.3248]
[1742139165774,0.063,128.84,128.83,33.16559919]
[1742139166561,0.063,128.84,128.83,114.83130202]
[1742139167483,0.063,128.84,128.83,114.54697888]
[1742139167685,0.063,128.84,128.83,87.94407969]
[1742139167987,0.063,128.84,128.83,81.38137969]
[1742139168861,0.063,128.84,128.83,107.98427888]
[1742139170667,0.0001,128.84,128.83,108.26860202]
[1742139170874,0.0001,128.84,128.83,114.43930202]
[1742139171573,0.063,128.91,128.87,20.0]
[1742139171764,0.063,128.91,128.9,18.84079919]
[1742139171965,0.063,128.91,128.9,26.59869919]
[1742139172668,0.063,128.91,128.9,107.97997888]
[1742139173273,0.063,128.91,128.9,81.38127969]
[1742139173891,0.063,128.91,128.9,89.13917969]
[1742139174082,0.063,128.91,128.9,107.97997888]
[1742139176790,0.063,128.91,128.9,89.13917969]
[1742139176989,0.063,128.91,128.9,107.97997888]
[1742139178992,0.063,128.91,128.9,100.22207888]
[1742139179194,0.063,128.91,128.9,81.38127969]
[1742139179401,0.063,128.91,128.87,46.60019919]
[1742139179611,0.063,128.91,128.87,127.98147888]
[1742139180089,0.063,128.91,128.88,18.84079919]
[1742139180604,0.063,128.91,128.9,26.59869919]
[1742139180780,0.063,128.91,128.9,107.97997888]
[1742139181097,0.063,128.91,128.9,81.38127969]
[1742139182182,0.063,128.91,128.9,100.22207888]
[1742139182590,0.0001,128.91,128.9,111.04375614]
[1742139182791,0.0001,128.91,128.9,117.13105614]
[1742139184308,0.0001,128.92,128.91,81.38127969]
[1742139184613,0.0001,128.92,128.91,107.97937888]
[1742139186590,0.0001,128.94,128.93,20.0]
[1742139186790,0.063,129.0,128.98,20.0]
[1742139186991,0.063,129.0,128.99,18.84079919]
[1742139187209,0.063,129.0,128.99,100.22207888]
[1742139187417,0.0001,129.0,128.99,119.34720121]
[1742139187592,0.0001,129.01,129.0,6.37162314]
[1742139187796,0.0001,129.01,129.0,46.8315849]
[1742139188106,0.0001,129.01,129.0,128.21286459]
[1742139188408,0.0001,129.01,129.0,146.86251345]
[1742139188707,0.0001,129.04,129.02,120.31525169]
[1742139189205,0.0001,129.05,129.04,19.12512233]
[1742139189607,0.063,129.07,129.06,20.0]
[1742139189802,0.063,129.07,129.06,139.34720121]
[1742139189989,0.063,129.07,129.06,120.50640202]
[1742139190190,0.063,129.07,129.06,139.34720121]
[1742139190191,0.0001,129.07,129.06,139.34720121]
[1742139191406,0.0001,129.07,129.06,164.08415007]
[1742139192602,0.063,129.09,129.07,0.28432314]
[1742139192912,0.063,129.1,129.09,18.933972]
[1742139193084,0.063,129.1,129.09,37.77477119]
[1742139193487,12.13341483,129.17,129.11,0.28432314]
[1742139193687,30.97421402,129.17,129.12,18.84079919]
[1742139193893,18.84079919,129.16,129.11,100.15907888]
[1742139194716,18.84079919,129.15,129.11,81.31827969]
[1742139196203,18.84079919,129.13,129.08,100.15907888]
[1742139196394,18.84079919,129.12,129.08,81.31827969]
[1742139196715,18.64964886,129.11,129.04,81.31827969]
[1742139196923,18.84079919,129.08,129.04,81.31827969]
[1742139197220,18.84079919,129.09,129.04,100.15907888]
[1742139197601,18.84079919,129.07,129.04,81.31827969]
[1742139197896,18.84079919,129.05,128.99,100.15907888]
[1742139198110,18.84079919,129.04,128.99,100.15907888]
[1742139198288,18.84079919,129.03,128.99,81.31827969]
[1742139198691,6.88,129.05,128.99,100.15907888]
[1742139198692,18.84079919,129.04,128.99,100.15907888]
[1742139198887,18.84079919,129.03,128.99,81.31827969]
[1742139199105,18.84079919,129.02,128.99,81.31827969]
[1742139199526,18.84079919,129.0,128.95,100.15907888]
[1742139200417,6.88,129.0,128.99,0.063]
[1742139200719,25.72079919,129.0,128.99,0.063]
[1742139201118,36.96994024,129.0,128.99,0.063]
[1742139201515,6.88,129.0,128.99,0.063]
[1742139202402,36.96994024,129.0,128.99,0.063]
[1742139202584,55.6195891,129.0,128.99,0.063]
[1742139202794,6.88,129.0,128.99,0.063]
[1742139202987,36.96994024,129.04,128.99,0.063]
[1742139203187,36.96994024,129.04,128.99,30.15294024]
[1742139203399,26.83234886,129.05,128.99,30.15294024]
[1742139203400,38.27264024,129.05,129.0,30.08994024]
[1742139203592,31.68894024,129.05,129.0,30.08994024]
[1742139205328,30.08994024,129.04,128.99,30.15294024]
[1742139206227,31.68894024,129.05,129.0,30.08994024]
[1742139206519,30.08994024,129.06,129.01,30.08994024]
[1742139206701,36.96994024,129.06,129.0,111.40821993]
[1742139207128,6.88,129.06,129.02,30.08994024]
[1742139207330,30.08994024,129.08,129.03,30.08994024]
[1742139207509,30.08994024,129.07,129.02,111.40821993]
[1742139210121,30.08994024,129.06,129.02,111.40821993]
[1742139210819,30.08994024,129.05,129.02,81.31827969]
[1742139211193,30.08994024,129.04,128.99,111.47121993]
[1742139211397,30.08994024,129.02,128.99,81.38127969]
[1742139211806,30.08994024,129.03,128.99,81.38127969]
[1742139212520,30.08994024,129.06,129.01,30.08994024]
[1742139212701,30.08994024,129.05,129.0,30.08994024]
[1742139213825,30.08994024,129.04,128.99,111.47121993]
[1742139214716,30.08994024,129.05,129.0,30.08994024]
[1742139214913,30.08994024,129.06,129.0,30.08994024]
[1742139215107,30.08994024,129.07,129.02,30.08994024]
[1742139215315,36.96994024,129.08,129.02,111.40821993]
[1742139215717,14.3302,129.09,129.02,111.40821993]
[1742139215909,30.08994024,129.07,129.02,111.40821993]
[1742139216323,30.08994024,129.09,129.04,30.08994024]
[1742139216705,38.59894024,129.1,129.04,30.08994024]
[1742139216912,30.08994024,129.09,129.04,111.40821993]
[1742139217522,30.08994024,129.09,129.04,81.31827969]
[1742139217708,30.08994024,129.07,129.04,81.31827969]
[1742139218026,30.08994024,129.06,129.01,117.41621993]
[1742139218210,30.08994024,129.06,129.01,111.40821993]
[1742139219121,30.08994024,129.08,129.03,30.08994024]
[1742139219316,38.59894024,129.1,129.04,30.08994024]
[1742139219515,38.59894024,129.1,129.05,30.08994024]
[1742139219828,0.03,129.1,129.06,30.08994024]
[1742139220007,30.11994024,129.1,129.05,30.08994024]
[1742139220408,30.08994024,129.09,129.04,111.40821993]
[1742139221127,30.11994024,129.1,129.05,30.08994024]
[1742139221623,0.03,129.1,129.07,30.08994024]
[1742139221924,0.03,129.1,129.07,111.40821993]
[1742139222127,0.03,129.1,129.08,30.08994024]
[1742139222309,0.03,129.1,129.09,30.08994024]
[1742139222715,0.03,129.1,129.09,111.40821993]
[1742139222919,0.0001,129.1,129.09,111.40821993]
[1742139223111,0.0001,129.1,129.09,100.07370948]
[1742139223304,0.0001,129.1,129.09,119.00768148]
[1742139223509,0.0001,129.1,129.09,120.16901889]
[1742139224327,18.67964886,129.2,129.13,18.75542979]
[1742139224523,18.75542979,129.18,129.13,100.07360948]
[1742139225002,18.75542979,129.17,129.13,81.31817969]
[1742139225210,30.00507983,129.17,129.13,81.31817969]
[1742139225633,30.00507983,129.16,129.13,81.31817969]
[1742139225933,30.00507983,129.15,129.13,81.31817969]
[1742139226436,30.00507983,129.17,129.13,81.31817969]
[1742139226837,30.00507983,129.16,129.13,81.31817969]
[1742139227434,30.00507983,129.17,129.13,81.31817969]
[1742139228023,30.00507983,129.18,129.13,111.32325952]
[1742139228229,30.00507983,129.17,129.13,81.31817969]
[1742139228444,30.00507983,129.16,129.13,81.31817969]
[1742139228945,30.00507983,129.15,129.13,81.31817969]
[1742139229447,30.00507983,129.16,129.13,81.31817969]
[1742139229644,30.00507983,129.17,129.13,81.31817969]
[1742139230018,30.00507983,129.18,129.13,111.32325952]
[1742139230218,30.00507983,129.16,129.13,81.31817969]
[1742139230635,30.00507983,129.17,129.13,81.31817969]
[1742139230838,30.00507983,129.18,129.13,111.32325952]
[1742139232346,30.00507983,129.19,129.14,30.00507983]
[1742139232839,30.00507983,129.19,129.13,111.32325952]
[1742139235042,30.00507983,129.18,129.13,111.32325952]
[1742139236449,30.03507983,129.18,129.13,111.32325952]
[1742139237550,30.03507983,129.18,129.13,81.31817969]
[1742139237848,30.00507983,129.16,129.13,81.31817969]
[1742139238544,30.00507983,129.15,129.13,81.31817969]
[1742139238740,30.00507983,129.14,129.11,81.31817969]
[1742139238939,30.00507983,129.12,129.11,81.31817969]
[1742139240249,30.00507983,129.13,129.11,81.31817969]
[1742139240435,30.00507983,129.13,129.1,0.063]
[1742139240634,30.00507983,129.12,129.1,0.063]
[1742139241949,30.00507983,129.11,129.1,0.063]
[1742139242158,30.00507983,129.12,129.1,0.063]
[1742139242456,36.88507983,129.15,129.1,30.06807983]
[1742139242628,30.00507983,129.17,129.12,30.00507983]
[1742139245349,30.00507983,129.16,129.11,30.00507983]
[1742139246358,30.00507983,129.17,129.12,30.00507983]
[1742139246564,30.00507983,129.16,129.11,30.00507983]
[1742139246745,30.00507983,129.15,129.1,111.38625952]
[1742139247261,18.75667358,129.16,129.11,18.75667358]
[1742139247856,6.91,129.18,129.13,18.75667358]
[1742139248060,25.66667358,129.18,129.13,100.07485327]
[1742139248261,6.91,129.18,129.13,100.07485327]
[1742139248454,25.66667358,129.18,129.13,100.07485327]
[1742139248655,18.78667358,129.18,129.13,100.07485327]
[1742139248860,0.03,129.18,129.14,18.75667358]
[1742139249040,0.03,129.17,129.15,18.75667358]
[1742139249947,0.03,129.17,129.15,100.07485327]
[1742139250852,0.03,129.17,129.15,81.31817969]
[1742139251253,18.78667358,129.17,129.15,81.31817969]
[1742139251453,0.03,129.17,129.15,81.31817969]
[1742139251766,18.78667358,129.17,129.15,81.31817969]
[1742139251967,18.75667358,129.16,129.15,81.31817969]
[1742139252846,18.75667358,129.16,129.1,100.13785327]
[1742139253045,6.88,129.16,129.1,100.13785327]
[1742139253246,25.63667358,129.16,129.11,18.75667358]
[1742139254151,18.75667358,129.14,129.1,81.38117969]
[1742139254549,18.75667358,129.15,129.1,100.13785327]
[1742139255861,18.75667358,129.14,129.1,81.38117969]
[1742139256848,18.75667358,129.13,129.1,81.38117969]
[1742139257048,18.75667358,129.12,129.1,0.063]
[1742139257653,18.75667358,129.13,129.1,0.063]
[1742139258163,18.75667358,129.14,129.1,0.063]
[1742139258367,6.88,129.16,129.1,18.81967358]
[1742139258671,25.63667358,129.16,129.11,18.75667358]
[1742139259273,6.88,129.16,129.13,18.75667358]
[1742139259475,0.03,129.17,129.14,18.75667358]
[1742139259682,18.78667358,129.17,129.13,81.31817969]
[1742139259967,0.03,129.17,129.13,100.07485327]
[1742139260467,18.78667358,129.17,129.13,81.31817969]
[1742139261275,0.03,129.16,129.13,81.31817969]
[1742139261475,0.03,129.16,129.13,100.07485327]
[1742139261653,0.03,129.16,129.13,81.31817969]
[1742139262576,18.78667358,129.16,129.13,81.31817969]
[1742139262971,18.78667358,129.16,129.11,100.07485327]
[1742139263168,18.75667358,129.15,129.11,100.07485327]
[1742139263466,18.78667358,129.16,129.11,100.07485327]
[1742139264478,6.88,129.19,129.13,18.75667358]
[1742139264659,18.75667358,129.18,129.13,100.07485327]
[1742139265062,18.75667358,129.17,129.13,81.31817969]
[1742139265564,18.75667358,129.17,129.14,7.7435]
[1742139266075,18.75667358,129.18,129.14,7.7435]
[1742139266259,6.88,129.19,129.14,7.7435]
[1742139266460,18.75667358,129.18,129.14,7.7435]
[1742139267273,18.75667358,129.18,129.14,45.85897358]
[1742139267580,18.75667358,129.19,129.14,52.11557358]
[1742139268981,18.75667358,129.19,129.14,133.43375327]
[1742139269658,1.5126,129.24,129.15,0.28432314]
[1742139269859,18.75667358,129.23,129.19,18.75667358]
[1742139270057,18.75667358,129.22,129.17,38.75667358]
[1742139270267,18.75667358,129.21,129.17,101.31817969]
[1742139271481,18.75667358,129.21,129.18,7.7411]
[1742139271780,18.75667358,129.22,129.18,7.7411]
[1742139271980,18.75667358,129.22,129.17,120.07485327]
[1742139271981,18.75667358,129.21,129.17,109.05967969]
[1742139272560,18.75667358,129.22,129.17,147.17065327]
[1742139274368,18.78667358,129.22,129.17,147.17065327]
[1742139275757,18.75667358,129.21,129.17,107.81635327]
[1742139275969,18.75667358,129.2,129.17,89.05967969]
[1742139276184,18.75667358,129.18,129.17,81.31817969]
[1742139276372,18.75667358,129.18,129.14,87.57477969]
[1742139276683,18.75667358,129.17,129.14,87.57477969]
[1742139277269,18.75667358,129.18,129.14,95.31797969]
[1742139277464,25.61667358,129.19,129.14,114.07465327]
[1742139279170,18.75667358,129.18,129.14,114.07465327]
[1742139279464,25.61667358,129.19,129.14,133.43345327]
[1742139279973,18.75667358,129.18,129.14,114.07465327]
[1742139280363,18.75667358,129.18,129.14,95.31797969]
[1742139280564,14.6006,129.19,129.14,13.9998]
[1742139280565,18.75667358,129.17,129.14,13.9998]
[1742139282081,14.6006,129.19,129.14,13.9998]
[1742139282082,18.75667358,129.16,129.14,7.7432]
[1742139282293,18.75667358,129.15,129.12,7.7447]
[1742139282585,18.75667358,129.13,129.1,89.12687969]
[1742139283189,18.64964886,129.16,129.1,89.12687969]
[1742139283190,18.75667358,129.12,129.1,81.38117969]
[1742139283389,18.75667358,129.12,129.1,7.8089]
[1742139283595,21.6645,129.18,129.1,27.1737]
[1742139283799,18.75667358,129.15,129.1,27.1737]
[1742139283967,18.75667358,129.14,129.1,27.1737]
[1742139284666,18.75667358,129.15,129.1,45.93037358]
[1742139285477,18.75667358,129.16,129.11,18.75667358]
[1742139286191,18.75667358,129.15,129.11,18.75667358]
[1742139286492,18.75667358,129.15,129.11,100.07485327]
[1742139287196,18.75667358,129.15,129.12,7.7447]
[1742139288793,18.75667358,129.16,129.12,7.7447]
[1742139288974,18.75667358,129.17,129.12,26.50137358]
[1742139289281,18.75667358,129.17,129.12,45.86317358]
[1742139289490,18.64964886,129.2,129.12,45.86317358]
[1742139289681,18.75667358,129.17,129.12,127.18135327]
[1742139289886,18.64964886,129.2,129.13,18.75667358]
[1742139289887,18.75667358,129.18,129.13,18.75667358]
[1742139290071,18.75667358,129.18,129.13,20.42287358]
[1742139290277,6.88,129.19,129.14,6.5642]
[1742139290487,18.75667358,129.21,129.16,18.75667358]
[1742139290675,0.03,129.22,129.17,18.75667358]
[1742139290877,0.03,129.22,129.19,27.0918]
[1742139291177,0.03,129.22,129.19,45.84847358]
[1742139291383,0.03,129.22,129.2,18.75667358]
[1742139291568,0.03,129.22,129.19,45.84847358]
[1742139292374,0.03,129.22,129.19,26.49717358]
[1742139293491,0.03,129.22,129.19,107.81535327]
[1742139294499,0.03,129.22,129.2,18.75667358]
[1742139294711,0.03,129.22,129.2,25.32087358]
[1742139294906,0.03,129.22,129.21,18.75667358]
[1742139295079,0.03,129.22,129.2,25.32087358]
[1742139295681,0.03,129.22,129.2,33.06077358]
[1742139295881,0.03,129.22,129.21,18.75667358]
[1742139296288,0.03,129.22,129.2,33.06077358]
[1742139296502,0.03,129.22,129.2,25.32087358]
[1742139297216,0.03,129.22,129.21,19.04099672]
[1742139298317,0.03,129.22,129.21,100.35917641]
[1742139298626,0.03,129.25,129.21,119.00882527]
[1742139298920,0.03,129.25,129.24,18.75667358]
[1742139299121,0.03,129.25,129.24,81.31817969]
[1742139299297,0.03,129.25,129.24,100.07485327]
[1742139300318,18.78667358,129.25,129.21,81.31817969]
[1742139300523,18.75667358,129.24,129.21,81.31817969]
[1742139300699,18.75667358,129.23,129.21,81.31817969]
[1742139301624,26.49427358,129.24,129.21,81.31817969]
[1742139301824,18.75667358,129.22,129.18,81.31817969]
[1742139301995,18.75667358,129.21,129.18,81.31817969]
[1742139302194,18.75667358,129.2,129.18,81.31817969]
[1742139302397,45.14392244,129.24,129.18,81.31817969]
[1742139302398,18.75667358,129.21,129.18,81.31817969]
[1742139302799,18.75667358,129.2,129.16,6.1873]
[1742139303001,18.75667358,129.18,129.15,81.31817969]
[1742139304223,6.86,129.21,129.17,18.75667358]
[1742139304430,6.88,129.24,129.2,18.75667358]
[1742139304624,26.52367358,129.25,129.2,18.75667358]
[1742139304827,26.52367358,129.25,129.19,6.1873]
[1742139304828,18.75667358,129.24,129.19,24.94397358]
[1742139305024,18.75667358,129.23,129.19,6.1873]
[1742139305230,18.75667358,129.21,129.17,100.07485327]
[1742139305706,26.49607358,129.21,129.17,100.07485327]
[1742139305909,26.49607358,129.21,129.17,81.31817969]
[1742139307011,18.75667358,129.2,129.17,81.31817969]
[1742139307334,18.75667358,129.19,129.15,81.31817969]
[1742139307633,18.75667358,129.17,129.15,81.31817969]
[1742139307839,18.75667358,129.17,129.13,292.40547969]
[1742139308323,18.75667358,129.17,129.13,87.50547969]
[1742139308711,18.75667358,129.15,129.11,81.31817969]
[1742139309127,18.75667358,129.14,129.11,81.31817969]
[1742139309634,26.50057358,129.14,129.11,81.31817969]
[1742139310145,18.75667358,129.12,129.1,0.063]
[1742139310839,18.75667358,129.13,129.1,0.063]
[1742139311614,7.7445,129.13,129.1,0.063]
[1742139311820,18.75667358,129.13,129.1,0.063]
[1742139312134,18.75667358,129.12,129.1,0.063]
[1742139313217,18.75667358,129.13,129.1,0.063]
[1742139314111,18.75667358,129.12,129.1,0.063]
[1742139316145,18.75667358,129.13,129.1,0.063]
[1742139317444,18.75667358,129.11,129.1,0.063]
[1742139317815,7.7444,129.13,129.1,0.063]
[1742139317816,18.75667358,129.13,129.1,0.063]
[1742139318429,25.65667358,129.14,129.1,0.063]
[1742139318652,18.75667358,129.13,129.1,0.063]
[1742139319023,18.75667358,129.12,129.1,0.063]
[1742139319524,21.6461,129.18,129.11,18.75667358]
[1742139319744,18.75667358,129.15,129.1,107.88375327]
[1742139319935,29.3873,129.18,129.1,89.12707969]
[1742139320139,18.75667358,129.15,129.1,107.88375327]
[1742139320739,18.75667358,129.16,129.11,18.75667358]
[1742139322047,18.75667358,129.14,129.1,81.38117969]
[1742139322350,18.75667358,129.13,129.1,81.38117969]
[1742139322543,18.75667358,129.14,129.1,89.12697969]
[1742139323227,18.75667358,129.14,129.1,81.38117969]
[1742139323435,18.75667358,129.15,129.1,107.88365327]
[1742139323647,18.75667358,129.15,129.1,109.46035327]
[1742139323821,18.75667358,129.15,129.11,18.75667358]
[1742139324019,18.75667358,129.16,129.11,18.75667358]
[1742139324242,18.75667358,129.17,129.12,18.75667358]
[1742139324443,40.40277358,129.18,129.13,18.75667358]
[1742139324632,18.75667358,129.18,129.13,18.75667358]
[1742139325031,18.75667358,129.17,129.12,106.09555327]
[1742139325326,18.75667358,129.16,129.12,87.33887969]
[1742139325643,18.75667358,129.14,129.1,7.8088]
[1742139325840,18.64964886,129.17,129.1,7.8089]
[1742139325841,18.75667358,129.13,129.1,7.8089]
[1742139326023,18.75667358,129.14,129.1,7.8089]
[1742139326452,1.6478,129.22,129.13,38.75667358]
[1742139326648,18.64964886,129.21,129.17,18.75667358]
[1742139326945,18.75667358,129.18,129.13,101.31817969]
[1742139327323,18.75667358,129.18,129.13,120.07485327]
[1742139327755,18.75667358,129.19,129.14,18.75667358]
[1742139328138,18.75667358,129.19,129.15,7.7429]
[1742139328331,25.77667358,129.2,129.15,26.49957358]
[1742139329353,7.02,129.2,129.16,18.75667358]
[1742139329964,1.6478,129.22,129.17,18.75667358]
[1742139330131,0.03,129.22,129.19,26.49717358]
[1742139330325,0.03,129.22,129.19,45.84847358]
[1742139330540,0.03,129.22,129.2,18.75667358]
[1742139330945,0.03,129.22,129.19,26.49717358]
[1742139331253,0.03,129.22,129.19,45.84847358]
[1742139331656,18.78667358,129.22,129.19,7.7405]
[1742139332163,0.03,129.22,129.19,7.7405]
[1742139333057,0.03,129.22,129.19,26.49717358]
[1742139333554,0.03,129.22,129.2,18.75667358]
[1742139334256,0.03,129.22,129.21,26.49597358]
[1742139334456,0.03,129.22,129.21,7.7393]
[1742139336367,0.03,129.22,129.2,7.7399]
[1742139336859,0.03,129.22,129.2,26.49657358]
[1742139337749,0.03,129.22,129.19,7.7404]
[1742139338065,0.03,129.22,129.21,19.04099672]
[1742139338365,0.03,129.22,129.21,53.36229672]
[1742139338763,0.03,129.22,129.21,115.63947969]
[1742139339772,0.03,129.22,129.21,7.7393]
[1742139340359,0.03,129.22,129.2,7.7399]
[1742139344065,0.03,129.22,129.2,26.49657358]
[1742139344804,0.03,129.22,129.21,19.04099672]
[1742139346674,0.03,129.22,129.2,107.81475327]
[1742139349083,0.03,129.22,129.21,18.75667358]
[1742139351187,0.03,129.22,129.21,26.49597358]
[1742139351864,0.03,129.22,129.21,7.7393]
[1742139352693,0.03,129.22,129.21,26.49597358]
[1742139353789,0.03,129.22,129.21,107.81415327]
[1742139355178,0.03,129.22,129.21,7.7393]
[1742139355372,0.03,129.22,129.21,26.49597358]
[1742139356175,0.03,129.22,129.21,108.09847641]
[1742139356368,0.0001,129.22,129.21,108.09847641]
[1742139356870,0.0001,129.22,129.21,126.74812527]
[1742139357075,0.0001,129.22,129.21,115.01847641]
[1742139358380,0.0001,129.22,129.21,133.66812527]
[1742139358570,0.0001,129.22,129.21,134.82848903]
[1742139358887,0.0001,129.22,129.21,133.66812527]
[1742139359069,0.0001,129.22,129.21,133.73112527]
[1742139362073,0.0001,129.22,129.21,115.08147641]
[1742139362672,0.0001,129.22,129.21,108.16147641]
[1742139362875,0.0001,129.22,129.21,107.87715327]
[1742139364098,0.0001,129.22,129.21,89.12047969]
[1742139364396,0.0001,129.22,129.21,0.063]
[1742139365273,0.0001,129.22,129.21,7.8023]
[1742139365699,0.0001,129.22,129.21,0.063]
[1742139366105,18.75677358,129.22,129.21,0.063]
[1742139367985,26.49547358,129.22,129.21,0.063]
[1742139368301,0.0001,129.22,129.21,0.063]
[1742139370281,0.0001,129.22,129.21,7.8023]
[1742139370681,0.0001,129.22,129.21,26.55897358]
[1742139370884,0.0001,129.22,129.21,7.8023]
[1742139371672,0.0001,129.22,129.21,108.16147641]
[1742139371878,0.0001,129.22,129.21,141.64622527]
[1742139372296,0.0001,129.25,129.24,20.28432314]
[1742139372485,0.0001,129.25,129.24,128.09667641]